[Event "Chinese Chess League 2019"]
[Site "Shen Yang"]
[Date "2019.12.06"]
[Round "21.3"]
[White "Ma, Qun"]
[Black "Zhao, Jun"]
[Result "1/2-1/2"]
[ECO "E11"]
[WhiteElo "2629"]
[BlackElo "2641"]
[Annotator "RC"]
[PlyCount "63"]
[EventDate "2019.04.09"]
[EventType "team-tourn"]
[EventCountry "CHN"]
[SourceTitle "playchess.com"]
[Source "ChessBase"]
[SourceQuality "1"]
[TimeControl "5400+30"]

1. d4 {[%emt 0:00:00]} Nf6 {[%emt 0:00:20]} 2. c4 {[%emt 0:00:19]} e6 {[%emt 0:00:11]} 3. Nf3 {[%emt 0:02:38]} d5 {[%emt 0:01:27]} 4. g3 {[%emt 0:00:27]} Bb4+ {[%emt 0:02:48]} 5. Bd2 {[%emt 0:00:46]} Be7 {[%emt 0:00:06]} 6. Bg2 {[%emt 0:00:06]} O-O {[%emt 0:00:15]} 7. O-O {[%emt 0:00:10]} c6 {[%emt 0:00:30]} 8. Qc2 {[%emt 0:00:43]} b6 {[%emt 0:00:12]} 9. Rd1 {[%emt 0:01:50]} Nbd7 {[%emt 0:02:01]} 10. Ne5 {[%emt 0:05:30]} Bb7 {[%emt 0:04:46]} 11. cxd5 {[%emt 0:00:10]} cxd5 {[%emt 0:00:04]} 12. Nc6 {[%emt 0:00:06]} Bxc6 {[%emt 0:00:27]} 13. Qxc6 {[%emt 0:00:08]} Qc8 {[%emt 0:00:06]} 14. Qb5 {[%emt 0:02:04]} Ne8 {[%emt 0:04:07]} 15. Qd3 {[%emt 0:00:21]} Nd6 {[%emt 0:01:10]} 16. Bb4 {[%emt 0:01:10]} Nf6 {[%emt 0:03:56]} 17. Nd2 {[%emt 0:00:45]} Nf5 {[%emt 0:02:56]} 18. Bxe7 {[%emt 0:00:23]} Nxe7 {[%emt 0:00:06]} 19. Rac1 {[%emt 0:00:52]} Qb7 {[%emt 0:00:50]} 20. e3 {[%emt 0:00:44]} Rfc8 {[%emt 0:00:23]} 21. Bf1 {[%emt 0:00:40]} Rxc1 {[%emt 0:00:13]} 22. Rxc1 {[%emt 0:00:06]} Rc8 {[%emt 0:00:03]} 23. Rc3 {[%emt 0:01:02]} Rxc3 {[%emt 0:01:59]} 24. Qxc3 {[%emt 0:00:55]} Qc6 {[%emt 0:00:19]} 25. Qxc6 {[%emt 0:02:00]} Nxc6 {[%emt 0:00:05]} 26. Bd3 {[%emt 0:00:19]} Kf8 {[%emt 0:00:42]} 27. Kf1 {[%emt 0:00:25]} Ke7 {[%emt 0:00:40]} 28. Ke2 {[%emt 0:00:12]} Nb4 {[%emt 0:00:23]} 29. Bb1 {[%emt 0:00:34]} Nc6 {[%emt 0:00:05]} 30. Bd3 {[%emt 0:00:45]} Nb4 {[%emt 0:00:05]} 31. Bb1 {[%emt 0:00:19]} Nc6 {[%emt 0:00:04]} 32. Bd3 {[%emt 0:00:23]} 1/2-1/2

[Event "Chinese Chess League 2019"]
[Site "Shen Yang"]
[Date "2019.12.06"]
[Round "21.5"]
[White "Ning, Kaiyu"]
[Black "Li, Ruofan"]
[Result "1-0"]
[ECO "A13"]
[WhiteElo "2330"]
[BlackElo "2335"]
[Annotator "NA"]
[PlyCount "81"]
[EventDate "2019.04.09"]
[EventType "team-tourn"]
[EventCountry "CHN"]
[SourceTitle "playchess.com"]
[Source "ChessBase"]
[SourceQuality "1"]
[TimeControl "5400+30"]

1. c4 {[%emt 0:00:00]} e6 {[%emt 0:00:00]} 2. Nf3 {[%emt 0:00:00]} Nf6 {[%emt 0:00:00]} 3. g3 {[%emt 0:00:00]} d5 {[%emt 0:00:05]} 4. Bg2 {[%emt 0:00:04]} dxc4 {[%emt 0:00:10]} 5. Qa4+ {[%emt 0:00:04]} c6 {[%emt 0:00:05]} 6. Qxc4 {[%emt 0:00:04]} b5 {[%emt 0:00:05]} 7. Qc2 {[%emt 0:00:02]} Bb7 {[%emt 0:00:06]} 8. a4 {[%emt 0:00:03] A13: English Opening: 1...e6} a6 {[%emt 0:00:05]} 9. Nc3 {[%emt 0:00:04]} Nbd7 {[%emt 0:00:08]} 10. O-O {[%emt 0:00:07]} Be7 {[%emt 0:00:10]} 11. d3 {[%emt 0:00:05]} O-O {[%emt 0:01:52]} 12. e4 {[%emt 0:00:03]} Qb6 {[%emt 0:00:33]} 13. Be3 {[%emt 0:02:59]} c5 {[%emt 0:00:06]} 14. h3 {[%emt 0:00:15]} h6 {[%emt 0:00:15]} 15. Rfc1 {[%emt 0:03:06]} Rfc8 {[%emt 0:01:04] [#]} 16. Qb1 $146 {[%emt 0:17:27]} ({Predecessor:} 16. Qe2) 16... b4 {[%emt 0:09:35]} 17. a5 {[%emt 0:05:39]} Qd8 {[%emt 0:00:21]} 18. Na4 {[%emt 0:00:57]} Qxa5 {[%emt 0:13:14]} 19. Nxc5 {[%emt 0:00:31]} Qb5 {[%emt 0:00:05]} 20. Nd4 {[%emt 0:01:40]} Qb6 {[%emt 0:03:22]} 21. Nxb7 {[%emt 0:11:19]} Qxb7 {[%emt 0:00:54]} 22. Nb3 {[%emt 0:00:11]} Bd8 {[%emt 0:05:45]} 23. Na5 {[%emt 0:08:35]} Qb5 {[%emt 0:14:41]} 24. Nc4 {[%emt 0:00:02]} a5 {[%emt 0:01:35]} 25. b3 {[%emt 0:14:23]} Be7 {[%emt 0:10:06]} 26. Rc2 {[%emt 0:00:16]} Rc6 {[%emt 0:03:36]} 27. Rca2 $16 {[%emt 0:07:29]} Rca6 {[%emt 0:00:11]} 28. Qd1 {[%emt 0:00:28]} Nc5 {[%emt 0:09:42]} 29. Bf1 {[%emt 0:02:32]} Qd7 {[%emt 0:04:45]} 30. d4 {[%emt 0:05:24]} Ncxe4 {[%emt 0:08:27]} 31. Ne5 {[%emt 0:00:01]} Qd6 {[%emt 0:00:14]} 32. Bxa6 {[%emt 0:00:28]} Nc3 {[%emt 0:00:05]} 33. Qf3 {[%emt 0:00:28]} Qxa6 {[%emt 0:02:51]} 34. Rxa5 {[%emt 0:00:49]} Qxa5 {[%emt 0:00:14]} 35. Qxa8+ {[%emt 0:02:39]} Qxa8 {[%emt 0:00:02]} 36. Rxa8+ {[%emt 0:00:03]} Bf8 {[%emt 0:01:56]} 37. d5 {[%emt 0:00:05]} Nce4 {[%emt 0:05:11]} 38. f3 {[%emt 0:01:36]} Nd6 {[%emt 0:01:50]} 39. Bc5 {[%emt 0:00:50]} Nde8 {[%emt 0:01:52]} 40. Bxf8 {[%emt 0:00:16]} Kxf8 {[%emt 0:00:14]} 41. d6 {[%emt 0:00:03]} 1-0

[Event "Chinese Chess League 2019"]
[Site "Shen Yang"]
[Date "2019.12.06"]
[Round "21.11"]
[White "Ni, Hua"]
[Black "Naiditsch, Arkadij"]
[Result "1/2-1/2"]
[ECO "E04"]
[WhiteElo "2672"]
[BlackElo "2617"]
[Annotator "RC"]
[PlyCount "63"]
[EventDate "2019.04.09"]
[EventType "team-tourn"]
[EventCountry "CHN"]
[SourceTitle "playchess.com"]
[Source "ChessBase"]
[SourceQuality "1"]
[TimeControl "5400+30"]

1. d4 {[%emt 0:00:16]} Nf6 {[%emt 0:00:00]} 2. c4 {[%emt 0:00:13]} e6 {[%emt 0:00:00]} 3. Nf3 {[%emt 0:00:12]} d5 {[%emt 0:00:00]} 4. g3 {[%emt 0:00:04]} dxc4 {[%emt 0:01:35]} 5. Bg2 {[%emt 0:00:51]} c5 {[%emt 0:00:56]} 6. O-O {[%emt 0:00:18]} Nc6 {[%emt 0:00:06]} 7. dxc5 {[%emt 0:11:52]} Qxd1 {[%emt 0:00:13]} 8. Rxd1 {[%emt 0:00:04]} Bxc5 {[%emt 0:00:11]} 9. Nbd2 {[%emt 0:02:28]} c3 {[%emt 0:00:19]} 10. bxc3 {[%emt 0:00:07]} O-O {[%emt 0:00:11]} 11. Nb3 {[%emt 0:01:53]} Be7 {[%emt 0:00:10]} 12. Nfd4 {[%emt 0:03:16]} Bd7 {[%emt 0:13:11]} 13. Bg5 {[%emt 0:13:19]} Rac8 {[%emt 0:08:06]} 14. Nf5 {[%emt 0:07:39]} exf5 {[%emt 0:00:46]} 15. Bxf6 {[%emt 0:00:05]} Bxf6 {[%emt 0:00:10]} 16. Rxd7 {[%emt 0:00:05]} b6 {[%emt 0:05:16]} 17. Nd4 {[%emt 0:01:42]} Nxd4 {[%emt 0:06:29]} 18. cxd4 {[%emt 0:00:16]} Rfd8 {[%emt 0:00:17]} 19. Rxd8+ {[%emt 0:00:13]} Bxd8 {[%emt 0:00:07]} 20. e3 {[%emt 0:02:26]} Be7 {[%emt 0:01:55]} 21. a4 {[%emt 0:00:23]} Rc3 {[%emt 0:01:27]} 22. Bd5 {[%emt 0:01:28]} g5 {[%emt 0:01:24]} 23. Kg2 {[%emt 0:00:15]} Kg7 {[%emt 0:00:51]} 24. Rb1 {[%emt 0:07:35]} f4 {[%emt 0:02:25]} 25. gxf4 {[%emt 0:00:22]} gxf4 {[%emt 0:00:07]} 26. Kf3 {[%emt 0:00:02]} fxe3 {[%emt 0:00:35]} 27. fxe3 {[%emt 0:00:03]} Bg5 {[%emt 0:00:21]} 28. Rb3 {[%emt 0:00:03]} Rxb3 {[%emt 0:00:21]} 29. Bxb3 {[%emt 0:00:03]} f5 {[%emt 0:00:10]} 30. Bc2 {[%emt 0:00:02]} Kf6 {[%emt 0:00:08]} 31. e4 {[%emt 0:00:15]} fxe4+ {[%emt 0:00:06]} 32. Bxe4 {[%emt 0:00:01] Ke5} 1/2-1/2

[Event "Chinese Chess League 2019"]
[Site "Shen Yang"]
[Date "2019.12.06"]
[Round "21.12"]
[White "Xu, Yi"]
[Black "Peng, Xiongjian"]
[Result "1/2-1/2"]
[ECO "C47"]
[WhiteElo "2541"]
[BlackElo "2486"]
[Annotator "RC"]
[PlyCount "60"]
[EventDate "2019.04.09"]
[EventType "team-tourn"]
[EventCountry "CHN"]
[SourceTitle "playchess.com"]
[Source "ChessBase"]
[SourceQuality "1"]
[TimeControl "5400+30"]

1. e4 {[%emt 0:00:00]} e5 {[%emt 0:00:18]} 2. Nf3 {[%emt 0:00:00]} Nc6 {[%emt 0:00:40]} 3. Nc3 {[%emt 0:00:00]} Nf6 {[%emt 0:01:11]} 4. d4 {[%emt 0:00:40]} exd4 {[%emt 0:00:43]} 5. Nxd4 {[%emt 0:00:05]} Bb4 {[%emt 0:00:41]} 6. Nxc6 {[%emt 0:00:16]} bxc6 {[%emt 0:00:32]} 7. Bd3 {[%emt 0:00:15]} d5 {[%emt 0:02:15]} 8. exd5 {[%emt 0:03:17]} cxd5 {[%emt 0:07:44]} 9. O-O {[%emt 0:04:42]} O-O {[%emt 0:00:57]} 10. Bg5 {[%emt 0:04:06]} c6 {[%emt 0:04:24]} 11. Qf3 {[%emt 0:04:35]} Be7 {[%emt 0:15:46]} 12. Rae1 {[%emt 0:01:56]} h6 {[%emt 0:02:26]} 13. Bxh6 {[%emt 0:01:42]} gxh6 {[%emt 0:35:29]} 14. Qe3 {[%emt 0:01:39]} Kg7 {[%emt 0:09:03]} 15. Qxe7 {[%emt 0:00:49]} Qxe7 {[%emt 0:00:59]} 16. Rxe7 {[%emt 0:00:06]} Re8 {[%emt 0:00:42]} 17. Rxe8 {[%emt 0:01:09]} Nxe8 {[%emt 0:00:05]} 18. Re1 {[%emt 0:00:18]} Be6 {[%emt 0:00:33]} 19. Na4 {[%emt 0:00:23]} Kf6 {[%emt 0:01:49]} 20. Nc5 {[%emt 0:01:03]} Ke7 {[%emt 0:00:30]} 21. f4 {[%emt 0:01:08]} Kd6 {[%emt 0:00:13]} 22. Nb7+ {[%emt 0:00:05]} Kc7 {[%emt 0:00:09]} 23. Nc5 {[%emt 0:00:05]} Kd6 {[%emt 0:00:05]} 24. Nb7+ {[%emt 0:00:03]} Kc7 {[%emt 0:00:09]} 25. Nc5 {[%emt 0:00:06]} Kd6 {[%emt 0:00:13]} 26. Nb7+ {[%emt 0:00:05]} Kc7 {[%emt 0:00:09]} 27. Nc5 {[%emt 0:00:04]} Kd6 {[%emt 0:00:08]} 28. Nb7+ {[%emt 0:00:05]} Kc7 {[%emt 0:00:08]} 29. Nc5 {[%emt 0:00:03]} Kd6 {[%emt 0:00:06]} 30. Nb7+ {[%emt 0:00:04]} Kc7 {[%emt 0:00:03]} 1/2-1/2

[Event "Chinese Chess League 2019"]
[Site "Shen Yang"]
[Date "2019.12.06"]
[Round "21.18"]
[White "Zou, Chen"]
[Black "Xu, Yinglun"]
[Result "1/2-1/2"]
[ECO "C11"]
[WhiteElo "2462"]
[BlackElo "2554"]
[Annotator "ChessBase"]
[PlyCount "100"]
[EventDate "2019.04.09"]
[EventType "team-tourn"]
[EventCountry "CHN"]
[SourceTitle "playchess.com"]
[Source "ChessBase"]
[SourceQuality "1"]
[TimeControl "5400+30"]

1. e4 {[%emt 0:00:00]} e6 {[%emt 0:00:00]} 2. d4 {[%emt 0:00:00]} d5 {[%emt 0:00:00]} 3. Nc3 {[%emt 0:00:00]} Nf6 {[%emt 0:00:00]} 4. e5 {[%emt 0:00:00]} Nfd7 {[%emt 0:00:00]} 5. f4 {[%emt 0:00:17]} c5 {[%emt 0:00:00]} 6. Nf3 {[%emt 0:00:07]} Nc6 {[%emt 0:00:02]} 7. Be3 {[%emt 0:00:06]} a6 {[%emt 0:00:05]} 8. Qd2 {[%emt 0:00:40]} b5 {[%emt 0:00:10]} 9. Bd3 {[%emt 0:00:39]} Qb6 {[%emt 0:00:40]} 10. Qf2 {[%emt 0:01:56]} cxd4 {[%emt 0:00:12]} 11. Nxd4 {[%emt 0:00:16]} Bc5 {[%emt 0:00:06]} 12. Nce2 {[%emt 0:00:11]} b4 {[%emt 0:00:06]} 13. O-O {[%emt 0:01:10]} a5 {[%emt 0:01:34]} 14. Bb5 {[%emt 0:05:20]} Nxd4 {[%emt 0:12:48]} 15. Bxd7+ {[%emt 0:02:53]} Bxd7 {[%emt 0:00:06]} 16. Bxd4 {[%emt 0:00:03]} Rc8 {[%emt 0:01:38]} 17. Bxc5 {[%emt 0:05:36]} Rxc5 {[%emt 0:00:35]} 18. Nd4 {[%emt 0:04:39]} Rc4 {[%emt 0:01:26]} 19. Rad1 {[%emt 0:01:58]} O-O {[%emt 0:01:33]} 20. Qe3 {[%emt 0:03:23]} a4 {[%emt 0:03:01]} 21. g4 {[%emt 0:03:17]} f6 {[%emt 0:03:17]} 22. Rf2 {[%emt 0:13:29]} fxe5 {[%emt 0:05:42]} 23. Qxe5 {[%emt 0:04:46]} Qc7 {[%emt 0:01:01]} 24. b3 {[%emt 0:06:14]} Qxe5 {[%emt 0:01:10]} 25. fxe5 {[%emt 0:00:09]} Rcc8 {[%emt 0:00:11]} 26. Rdf1 {[%emt 0:08:21]} Rxf2 {[%emt 0:07:20]} 27. Rxf2 {[%emt 0:03:39]} h6 {[%emt 0:00:04]} 28. Kf1 {[%emt 0:00:45]} axb3 {[%emt 0:01:02]} 29. axb3 {[%emt 0:01:33]} Be8 {[%emt 0:08:48]} 30. Nxe6 {[%emt 0:06:10]} Bd7 {[%emt 0:00:22]} 31. Nf4 {[%emt 0:07:41]} Bxg4 {[%emt 0:00:42]} 32. Nxd5 {[%emt 0:00:49]} Re8 {[%emt 0:05:06]} 33. Nxb4 {[%emt 0:00:03]} Rxe5 {[%emt 0:00:25]} 34. Rd2 {[%emt 0:01:10]} Kf7 {[%emt 0:03:20]} 35. Nd3 {[%emt 0:01:21]} Re3 {[%emt 0:04:22]} 36. c4 {[%emt 0:04:06]} Bf5 {[%emt 0:06:57]} 37. Nc5 {[%emt 0:00:03]} Kf6 {[%emt 0:03:28]} 38. Re2 {[%emt 0:03:43]} Re5 {[%emt 0:13:07]} 39. b4 {[%emt 0:00:45]} Rxc5 {[%emt 0:01:00]} 40. bxc5 {[%emt 0:00:05]} Bd3 {[%emt 0:00:01]} 41. Kf2 {[%emt 0:09:42]} Bxe2 {[%emt 0:00:09]} 42. Kxe2 {[%emt 0:00:02]} Ke6 {[%emt 0:00:06]} 43. h3 {[%emt 0:03:19]} g5 {[%emt 0:00:24]} 44. Kf3 {[%emt 0:00:25]} h5 {[%emt 0:00:03]} 45. Ke4 {[%emt 0:00:15]} Kd7 {[%emt 0:00:16]} 46. Kf5 {[%emt 0:00:12]} g4 {[%emt 0:00:04]} 47. hxg4 {[%emt 0:00:02]} hxg4 {[%emt 0:00:04]} 48. Kxg4 {[%emt 0:00:03]} Kc6 {[%emt 0:00:02]} 49. Kg3 {[%emt 0:00:05]} Kxc5 {[%emt 0:00:03]} 50. Kg2 {[%emt 0:00:03]} Kxc4 {[%emt 0:00:02]} 1/2-1/2

[Event "Chinese Chess League 2019"]
[Site "Shen Yang"]
[Date "2019.12.06"]
[Round "21.19"]
[White "Li, Xueyi"]
[Black "Zhao, Shengxin"]
[Result "1-0"]
[ECO "E05"]
[WhiteElo "2270"]
[BlackElo "2099"]
[Annotator "NA"]
[PlyCount "129"]
[EventDate "2019.04.09"]
[EventType "team-tourn"]
[EventCountry "CHN"]
[SourceTitle "playchess.com"]
[Source "ChessBase"]
[SourceQuality "1"]
[TimeControl "5400+30"]

1. Nf3 {[%emt 0:00:13]} d5 {[%emt 0:01:26]} 2. d4 {[%emt 0:00:40]} Nf6 {[%emt 0:00:06]} 3. g3 {[%emt 0:00:11]} e6 {[%emt 0:00:38]} 4. c4 {[%emt 0:01:56]} Be7 {[%emt 0:01:03]} 5. Bg2 {[%emt 0:00:58]} O-O {[%emt 0:00:20]} 6. O-O {[%emt 0:00:07]} dxc4 {[%emt 0:00:32]} 7. Qc2 {[%emt 0:00:08]} a6 {[%emt 0:00:44]} 8. a4 {[%emt 0:00:09]} Bd7 {[%emt 0:01:09]} 9. Qxc4 {[%emt 0:02:33]} Bc6 {[%emt 0:00:30]} 10. Bg5 {[%emt 0:00:20]} Bd5 {[%emt 0:01:11]} 11. Qc2 {[%emt 0:04:29]} Be4 {[%emt 0:01:52]} 12. Qd2 {[%emt 0:03:15]} h6 {[%emt 0:02:31]} 13. Bxf6 {[%emt 0:03:32]} Bxf6 {[%emt 0:00:12]} 14. Rd1 {[%emt 0:03:57]} Nd7 {[%emt 0:07:12]} 15. Nc3 {[%emt 0:00:11]} Bxf3 {[%emt 0:00:58]} 16. Bxf3 {[%emt 0:00:22]} c6 {[%emt 0:00:45]} 17. e3 {[%emt 0:02:10]} g6 {[%emt 0:07:03]} 18. Rab1 {[%emt 0:07:16]} Nb6 {[%emt 0:06:23]} 19. b4 {[%emt 0:01:34]} Nd5 {[%emt 0:01:07]} 20. Ne4 {[%emt 0:02:22]} Be7 {[%emt 0:04:18]} 21. Nc5 {[%emt 0:01:08]} b6 {[%emt 0:01:12]} 22. Nd3 {[%emt 0:00:25]} a5 {[%emt 0:18:59]} 23. bxa5 {[%emt 0:07:45]} Rxa5 {[%emt 0:00:35]} 24. Ne5 {[%emt 0:00:56]} Rxa4 {[%emt 0:07:46]} 25. Nxc6 {[%emt 0:01:24]} Qd6 {[%emt 0:00:16]} 26. Bxd5 {[%emt 0:00:19]} exd5 {[%emt 0:00:09]} 27. Nxe7+ {[%emt 0:00:07]} Qxe7 {[%emt 0:00:04]} 28. Rxb6 {[%emt 0:00:07]} Qe4 {[%emt 0:02:00]} 29. Qb2 {[%emt 0:02:00]} Kg7 {[%emt 0:00:17]} 30. Rb4 {[%emt 0:16:10]} Raa8 {[%emt 0:02:52]} 31. Rb7 {[%emt 0:03:54]} Rfc8 {[%emt 0:02:13]} 32. Rf1 {[%emt 0:11:39]} Qf3 {[%emt 0:01:22]} 33. Qb3 {[%emt 0:02:15]} Rc4 {[%emt 0:02:13]} 34. Rb8 {[%emt 0:02:14]} Ra6 {[%emt 0:03:49]} 35. Re8 {[%emt 0:02:06]} Qf6 {[%emt 0:11:15]} 36. Qb8 {[%emt 0:02:15]} Re6 {[%emt 0:00:49]} 37. Rh8 {[%emt 0:00:30]} Qf3 {[%emt 0:01:15]} 38. Qf8+ {[%emt 0:01:15]} Kf6 {[%emt 0:00:04]} 39. Qxh6 {[%emt 0:00:41]} Rc2 {[%emt 0:00:32]} 40. Qh4+ {[%emt 0:01:16]} Kf5 {[%emt 0:02:09]} 41. Rf8 {[%emt 0:00:27]} Rf6 {[%emt 0:00:28]} 42. Re8 {[%emt 0:00:49]} Re6 {[%emt 0:00:09]} 43. Qh3+ {[%emt 0:01:12]} Qg4 {[%emt 0:00:10]} 44. Qh8 {[%emt 0:00:52]} Qe4 {[%emt 0:01:44]} 45. Rxe6 {[%emt 0:01:21]} Qxe6 {[%emt 0:00:07]} 46. Qh3+ {[%emt 0:00:30]} Ke4 {[%emt 0:00:15]} 47. Qxe6+ {[%emt 0:00:24]} fxe6 {[%emt 0:00:03]} 48. Kg2 {[%emt 0:00:05]} g5 {[%emt 0:01:15]} 49. Rb1 {[%emt 0:00:50]} g4 {[%emt 0:00:35]} 50. Rb8 {[%emt 0:00:44]} Kf5 {[%emt 0:00:03]} 51. Rf8+ {[%emt 0:00:08]} Kg5 {[%emt 0:00:03]} 52. h3 {[%emt 0:00:21]} gxh3+ {[%emt 0:00:03]} 53. Kxh3 {[%emt 0:00:05]} Re2 {[%emt 0:00:19]} 54. g4 {[%emt 0:00:20]} Re1 {[%emt 0:00:06]} 55. Rg8+ {[%emt 0:00:44]} Kf6 {[%emt 0:00:06]} 56. Kg3 {[%emt 0:00:21]} Re2 {[%emt 0:00:21]} 57. Rf8+ {[%emt 0:00:34]} Kg6 {[%emt 0:00:14]} 58. Rh8 {[%emt 0:01:08]} Kg7 {[%emt 0:00:12]} 59. Rh5 {[%emt 0:00:12]} Kg6 {[%emt 0:00:04]} 60. Re5 {[%emt 0:00:06]} Kf7 {[%emt 0:00:13]} 61. f4 {[%emt 0:00:47]} Re1 {[%emt 0:00:01]} 62. f5 {[%emt 0:00:30]} Rg1+ {[%emt 0:00:04]} 63. Kf4 {[%emt 0:00:21]} exf5 {[%emt 0:00:11]} 64. Rxf5+ {[%emt 0:00:15]} Ke6 {[%emt 0:00:04]} 65. Re5+ {[%emt 0:00:07]} 1-0

[Event "Chinese Chess League 2019"]
[Site "Shen Yang"]
[Date "2019.12.06"]
[Round "21.20"]
[White "Shuvalova, Polina"]
[Black "Zhou, Zirun"]
[Result "1-0"]
[ECO "C78"]
[WhiteElo "2446"]
[BlackElo "2121"]
[Annotator "RC"]
[PlyCount "75"]
[EventDate "2019.04.09"]
[EventType "team-tourn"]
[EventCountry "CHN"]
[SourceTitle "playchess.com"]
[Source "ChessBase"]
[SourceQuality "1"]
[TimeControl "5400+30"]

1. e4 {[%emt 0:00:00]} e5 {[%emt 0:00:00]} 2. Nf3 {[%emt 0:00:00]} Nc6 {[%emt 0:00:00]} 3. Bb5 {[%emt 0:00:00]} a6 {[%emt 0:00:00]} 4. Ba4 {[%emt 0:00:00]} Nf6 {[%emt 0:00:10]} 5. O-O {[%emt 0:00:00]} b5 {[%emt 0:00:06]} 6. Bb3 {[%emt 0:00:02]} Bc5 {[%emt 0:00:10]} 7. a4 {[%emt 0:00:28]} Rb8 {[%emt 0:00:12]} 8. c3 {[%emt 0:00:04]} d6 {[%emt 0:00:07]} 9. d4 {[%emt 0:00:10]} Bb6 {[%emt 0:00:08]} 10. a5 {[%emt 0:00:09]} Ba7 {[%emt 0:00:05]} 11. h3 {[%emt 0:00:06]} O-O {[%emt 0:00:09]} 12. Be3 {[%emt 0:01:08]} Ra8 {[%emt 0:00:19]} 13. Re1 {[%emt 0:01:33]} h6 {[%emt 0:07:16]} 14. Nbd2 {[%emt 0:00:13]} exd4 {[%emt 0:00:51]} 15. cxd4 {[%emt 0:00:04]} Nb4 {[%emt 0:00:16]} 16. e5 {[%emt 0:00:04]} dxe5 {[%emt 0:00:54]} 17. Nxe5 {[%emt 0:01:49]} Bb7 {[%emt 0:03:59]} 18. Ndf3 {[%emt 0:07:11]} Bd5 {[%emt 0:02:52]} 19. Rc1 {[%emt 0:05:16]} Qd6 {[%emt 0:06:51]} 20. Nh4 {[%emt 0:16:33]} Bxb3 {[%emt 0:05:31]} 21. Qxb3 {[%emt 0:00:12]} Nfd5 {[%emt 0:00:41]} 22. Bd2 {[%emt 0:04:37]} Rfd8 {[%emt 0:07:54]} 23. Nf5 {[%emt 0:02:18]} Qf6 {[%emt 0:02:58]} 24. g4 {[%emt 0:08:23]} c5 {[%emt 0:10:33]} 25. dxc5 {[%emt 0:04:33]} Nc6 {[%emt 0:01:29]} 26. Nxc6 {[%emt 0:01:42]} Qxc6 {[%emt 0:00:16]} 27. Qxd5 {[%emt 0:01:03]} Qxd5 {[%emt 0:00:40]} 28. Ne7+ {[%emt 0:02:05]} Kf8 {[%emt 0:00:53]} 29. Nxd5 {[%emt 0:00:06]} Rxd5 {[%emt 0:00:06]} 30. Be3 {[%emt 0:04:29]} b4 {[%emt 0:01:51]} 31. Rc4 {[%emt 0:07:29]} Re8 {[%emt 0:04:44]} 32. Kg2 {[%emt 0:01:52]} f6 {[%emt 0:06:14]} 33. Rec1 {[%emt 0:05:39]} Rb8 {[%emt 0:05:59]} 34. Bf4 {[%emt 0:00:31]} Rc8 {[%emt 0:00:18]} 35. b3 {[%emt 0:03:28]} Kf7 {[%emt 0:00:36]} 36. Rxb4 {[%emt 0:01:19]} Kg6 {[%emt 0:02:44]} 37. Rb7 {[%emt 0:02:29]} Rdxc5 {[%emt 0:01:38]} 38. Rd1 {[%emt 0:00:28]} 1-0

[Event "Chinese Chess League 2019"]
[Site "Shen Yang"]
[Date "2019.12.06"]
[Round "21.22"]
[White "Wang, Yiye"]
[Black "Chen, Qi b"]
[Result "1/2-1/2"]
[ECO "E25"]
[WhiteElo "2439"]
[BlackElo "2436"]
[Annotator "RC"]
[PlyCount "50"]
[EventDate "2019.04.09"]
[EventType "team-tourn"]
[EventCountry "CHN"]
[SourceTitle "playchess.com"]
[Source "ChessBase"]
[SourceQuality "1"]
[TimeControl "5400+30"]

1. c4 {[%emt 0:00:00]} Nf6 {[%emt 0:00:00]} 2. Nc3 {[%emt 0:01:04]} e6 {[%emt 0:02:35]} 3. d4 {[%emt 0:02:30]} Bb4 {[%emt 0:02:09]} 4. f3 {[%emt 0:01:32]} d5 {[%emt 0:02:16]} 5. a3 {[%emt 0:00:14]} Bxc3+ {[%emt 0:00:52]} 6. bxc3 {[%emt 0:00:07]} c5 {[%emt 0:00:24]} 7. cxd5 {[%emt 0:03:22]} Nxd5 {[%emt 0:00:24]} 8. dxc5 {[%emt 0:03:46]} f5 {[%emt 0:00:23]} 9. c4 {[%emt 0:06:20]} Qf6 {[%emt 0:06:46]} 10. Bg5 {[%emt 0:04:35]} Qxg5 {[%emt 0:00:50]} 11. cxd5 {[%emt 0:00:11]} exd5 {[%emt 0:04:37]} 12. Qxd5 {[%emt 0:08:24]} Nc6 {[%emt 0:01:46]} 13. Rd1 {[%emt 0:07:41]} Qe3 {[%emt 0:09:23]} 14. Rd3 {[%emt 0:03:48]} Qh6 {[%emt 0:03:33]} 15. Qb3 {[%emt 0:19:03]} Be6 {[%emt 0:09:30]} 16. Qxb7 {[%emt 0:13:39]} Qc1+ {[%emt 0:01:04]} 17. Rd1 {[%emt 0:02:49]} Qc3+ {[%emt 0:00:19]} 18. Kf2 {[%emt 0:00:33]} Qxc5+ {[%emt 0:00:19]} 19. e3 {[%emt 0:00:29]} O-O {[%emt 0:01:05]} 20. Qb5 {[%emt 0:03:27]} Qc2+ {[%emt 0:02:38]} 21. Qe2 {[%emt 0:03:10]} Qc5 {[%emt 0:03:06]} 22. Qb5 {[%emt 0:04:03]} Qc2+ {[%emt 0:05:34]} 23. Qe2 {[%emt 0:03:34]} Qc5 {[%emt 0:07:47]} 24. Qb5 {[%emt 0:03:29]} Qc2+ {[%emt 0:00:09]} 25. Qe2 {[%emt 0:00:35]} Qc5 {[%emt 0:00:06]} 1/2-1/2

[Event "Chinese Chess League 2019"]
[Site "Shen Yang"]
[Date "2019.12.06"]
[Round "21.25"]
[White "Guo, Qi"]
[Black "Song, Yuxin"]
[Result "1/2-1/2"]
[ECO "D06"]
[WhiteElo "2403"]
[BlackElo "2284"]
[Annotator "RC"]
[PlyCount "60"]
[EventDate "2019.04.09"]
[EventType "team-tourn"]
[EventCountry "CHN"]
[SourceTitle "playchess.com"]
[Source "ChessBase"]
[SourceQuality "1"]
[TimeControl "5400+30"]

1. d4 {[%emt 0:00:00]} d5 {[%emt 0:00:00]} 2. Nf3 {[%emt 0:00:32]} Bf5 {[%emt 0:00:00]} 3. c4 {[%emt 0:01:03]} e6 {[%emt 0:00:58]} 4. Nc3 {[%emt 0:00:30]} Nc6 {[%emt 0:03:01]} 5. a3 {[%emt 0:01:16]} Nf6 {[%emt 0:09:07]} 6. e3 {[%emt 0:05:26]} Be7 {[%emt 0:00:00]} 7. b4 {[%emt 0:00:31]} O-O {[%emt 0:01:33]} 8. Bb2 {[%emt 0:00:26]} Ne4 {[%emt 0:07:06]} 9. Be2 {[%emt 0:04:36]} a5 {[%emt 0:05:22]} 10. b5 {[%emt 0:00:00]} Nb8 {[%emt 0:03:14]} 11. O-O {[%emt 0:01:15]} dxc4 {[%emt 0:04:30]} 12. Bxc4 {[%emt 0:02:31]} c6 {[%emt 0:03:23]} 13. Qb3 {[%emt 0:12:02]} Nd7 {[%emt 0:05:50]} 14. Rfd1 {[%emt 0:03:59]} Nb6 {[%emt 0:12:14]} 15. Ne5 {[%emt 0:05:37]} a4 {[%emt 0:04:58]} 16. Qa2 {[%emt 0:00:27]} Nxc3 {[%emt 0:02:18]} 17. Bxc3 {[%emt 0:01:00]} cxb5 {[%emt 0:00:01]} 18. Bxb5 {[%emt 0:00:47]} Qd5 {[%emt 0:00:14]} 19. Qb2 {[%emt 0:07:39]} Qb3 {[%emt 0:02:41]} 20. g4 {[%emt 0:02:33]} Qxb2 {[%emt 0:04:11]} 21. Bxb2 {[%emt 0:00:13]} Bc2 {[%emt 0:00:09]} 22. Rdc1 {[%emt 0:03:51]} Rfc8 {[%emt 0:00:25]} 23. Nc4 {[%emt 0:02:23]} Nxc4 {[%emt 0:01:16]} 24. Rxc2 {[%emt 0:00:05]} Nxb2 {[%emt 0:00:14]} 25. Rxb2 {[%emt 0:00:38]} Rc3 {[%emt 0:00:07]} 26. Bd7 {[%emt 0:00:36]} Rxa3 {[%emt 0:03:52]} 27. Rxa3 {[%emt 0:00:12]} Bxa3 {[%emt 0:00:02]} 28. Ra2 {[%emt 0:00:16]} Bd6 {[%emt 0:00:31]} 29. Rxa4 {[%emt 0:00:08]} Rxa4 {[%emt 0:00:07]} 30. Bxa4 {[%emt 0:00:05]} Kf8 {[%emt 0:00:16]} 1/2-1/2